Cogmind - Beta 17.1 @@@ ROGUE MODE // 2026.08.30 @ 22:03:04 // Winter2019/RPGLIKE Player: obl-vn Result: Destroyed by P-60 Hacker with Shock Rifle Performance ------------- Evolutions (3) 1500 Regions Visited (5) 1000 Robots Destroyed (68) 340 Value Destroyed (2277) 2277 Prototype IDs (25) 500 Alien Tech Used (0) 0 Bonus (2007) 2007 TOTAL SCORE: 7624 Bonus ------- Follower Combat Kills 7 Delivered SUBCON Basin 2000 Cogmind --------- Core Integrity 0/700 Matter 300/300 Energy 25/265 System Corruption 2% Temperature Cool (0) Movement Flying (40) Location -7/Factory Parts ------- > --- POWER (1) -------- Improved Ion Engine > --- PROPULSION (4) --- Flightbrick > --- UTILITY (4+3) ---- Improved Signal Interpreter Core Analyzer (+) Hacking Suite Makeshift Hacking Suite Tech Extrapolator > --- WEAPON (2) ------- Improved EM Pulse Cannon Heavy Ion Cannon > --- INVENTORY (2) ---- Energy Filter System Restoration Module Peak State ------------ > --- POWER ------------ Improved Ion Engine > --- PROPULSION ------- Flightbrick > --- UTILITY ---------- Improved Signal Interpreter Core Analyzer Hacking Suite Makeshift Hacking Suite Tech Extrapolator > --- WEAPON ----------- Improved EM Pulse Cannon Heavy Ion Cannon > --- INVENTORY -------- Energy Filter System Restoration Module [Rating: 66] Favorites ----------- Power Improved Ion Engine Engine Improved Ion Engine Propulsion Compact Wheel Wheel Compact Wheel Flight Unit Flightbrick Utility Structural Scanner Device Structural Scanner Storage Large Battery Processor Tech Extrapolator Hackware Makeshift Hacking Suite Protection Scrap Shield Weapon EM Pulse Gun Energy Gun EM Pulse Gun Energy Cannon Heavy Ion Cannon Ballistic Cannon Battle Cannon Build | -11 -10 -10 -10 -9 -7 ------- Run | Yrd Mat Min Sub Rec Fac Slots Evolved 7 | 1 3 . 3 . . Power . | . . . . . . Propulsion 3 | . . . 3 . . Utility 3 | . 3 . . . . Weapon 1 | 1 . . . . . Parts Attached 26 | 4 7 . 7 1 7 Power 2 | 1 1 . . . . Engine 2 | 1 1 . . . . Core . | . . . . . . Reactor . | . . . . . . Propulsion 2 | 1 . . 1 . . Treads . | . . . . . . Leg . | . . . . . . Wheel 1 | 1 . . . . . Hover . | . . . . . . Flight 1 | . . . 1 . . Utility 12 | . 4 . 3 1 4 Device 3 | . 1 . 1 . 1 Storage 1 | . 1 . . . . Processor 3 | . . . . 1 2 Hackware 2 | . . . 1 . 1 Protection 3 | . 2 . 1 . . Artifact . | . . . . . . Weapon 10 | 2 2 . 3 . 3 Energy Gun 4 | 2 2 . . . . Energy Cannon 2 | . . . . . 2 Ballistic Gun . | . . . . . . Ballistic Cannon 4 | . . . 3 . 1 Launcher . | . . . . . . Special Weapon . | . . . . . . Impact Weapon . | . . . . . . Slashing Weapon . | . . . . . . Piercing Weapon . | . . . . . . Special Melee Weapon . | . . . . . . Unidentified Prototypes 1 | . . . 1 . . Parts Lost 1 | . . . 1 . . Power . | . . . . . . Propulsion . | . . . . . . Utility 1 | . . . 1 . . Weapon . | . . . . . . Highest Loss Streak 1 | . . . 1 . . To Critical Strikes . | . . . . . . Average Backups . | . . 1 . . 1 Power . | . . . . . . Propulsion . | . . . . . . Utility . | . . . . . 1 Weapon . | . . 1 . . . Tool/Special . | . . . . . . Unused Backups 4 | . . . 1 . 3 Power . | . . . . . . Propulsion . | . . . . . . Utility 2 | . . . . . 2 Weapon 2 | . . . 1 . 1 Tool/Special . | . . . . . . Average Slot Usage (%) 79 | . 96 87 80 55 58 Engine 11 | . 17 12 11 7 7 Wheel 9 | . 17 12 10 . . Flight 2 | . . . 1 7 7 Device 12 | . 14 12 14 14 5 Storage 4 | . 5 12 2 . . Processor 2 | . . . . 5 15 Hackware 4 | . . . 8 7 8 Protection 6 | . 4 12 7 . . Energy Gun 14 | . 35 25 5 . . Energy Cannon 1 | . . . . . 11 Ballistic Cannon 7 | . . . 17 14 1 Peak Build Rating 66 | 4 11 11 52 56 66 Average Rating 25 | 3 7 11 21 55 61 On Entrance 22 | . 4 11 11 52 56 Avg Prop Armor Cover (%) . | . . . . . . Naked Turns . | . . . . . . Heaviest Build 38 | 5 33 33 38 15 23 Greatest Support 24 | 16 16 16 24 24 24 Greatest Overweight (x) 2 | 1 2 2 2 . . Average Overweight (x) . | . . 2 . . . Largest Inventory Capacity 2 | . 1 1 2 2 2 Average Capacity 1 | . . 1 1 2 2 Most Carried 2 | . 1 1 2 2 2 Average Carried 1 | . . 1 1 1 1 Final Capacity 2 | . 1 1 2 2 2 Final Carried 2 | . 1 1 2 1 2 Class Distribution -------------------- 86% | Mutant 8% | Hacker-Scout 3% | Wizard-Mutant Dominant Class ---------------- Mutant | -10/Materials Mutant | -10/Mines Mutant | -10/Subcaves Mutant | -9/Recycling Hacker-Scout | -7/Factory Resources | -11 -10 -10 -10 -9 -7 ----------- Run | Yrd Mat Min Sub Rec Fac Matter Collected 1251 | 114 196 . 689 40 212 Remotely . | . . . . . . Salvage Created 2487 | . 763 367 577 37 743 Parts 137 | . 47 17 46 . 27 Haulers Intercepted 3 | . 2 . . . 1 Recyclers Shooed . | . . . . . . Parts Field Recycled . | . . . . . . Retrieved Matter . | . . . . . . Parts Self-Destructed 21 | . . . 21 . . Prevented . | . . . . . . Parts Restored . | . . . . . . Kills | -11 -10 -10 -10 -9 -7 ------- Run | Yrd Mat Min Sub Rec Fac Combat Hostiles Destroyed 59 | . 17 9 21 1 11 Guns 23 | . 15 6 2 . . Cannons 27 | . . . 15 1 11 AOE 6 | . 2 2 2 . . Classes Destroyed 9 | . 6 . 1 1 1 Worker 1 | . . . . . 1 Builder 2 | . 2 . . . . Hauler 3 | . 2 . . . 1 Operator 1 | . 1 . . . . Turret 2 | . . . 2 . . Swarmer 18 | . 6 3 6 . 3 Grunt 20 | . 8 6 1 . 5 Sentry 4 | . . . . 1 3 Subdweller 17 | . 3 . 14 . . Best Kill Streak 5 | . 4 2 5 1 3 Combat Bots Only 4 | . 4 2 4 1 3 Max Kills in Single Turn 2 | . 2 2 2 1 1 Gunslinging 1 | . 1 1 . . . Exploded 2 | . 2 2 2 . . Melee . | . . . . . . Uniques/NPCs Destroyed . | . . . . . . Combat | -11 -10 -10 -10 -9 -7 -------- Run | Yrd Mat Min Sub Rec Fac Hostile Shots Fired 301 | . 52 40 95 4 110 Missed 114 | . 16 12 34 1 51 Hits 187 | . 36 28 61 3 59 Projectile 187 | . 36 28 61 3 59 AOE 3 | . . . 3 . . Critical Strikes 8 | . 2 2 3 . 1 Damage Taken 2954 | . 513 367 1238 42 794 Core 1972 | . 349 193 777 33 620 Absorbed by Shields . | . . . . . . Redirected to Core 1584 | . 258 144 575 33 574 Core Remaining (%) 87 | 100 . . . 74 . Volleys Fired 302 | . 68 38 100 11 85 Largest 2 | . 2 2 2 2 2 Hottest 134 | . 80 80 80 66 134 Shots Fired 494 | . 131 70 189 15 89 Gun 249 | . 131 70 48 . . Cannon 245 | . . . 141 15 89 Launcher . | . . . . . . Special . | . . . . . . Kinetic 158 | . . . 141 15 2 Thermal 150 | . 82 . . . 68 Explosive . | . . . . . . Electromagnetic 186 | . 49 70 48 . 19 Robot Hit Streak 37 | . 13 8 37 8 11 Robot Miss Streak 4 | . 3 3 3 . 4 Penetration Max . | . . . . . . Secondary Targets 2 | . 1 1 . . . Max Gunslinging Chain 1 | . 1 1 . . . Shots Hit Robots 260 | . 76 32 111 6 35 Core Hits 113 | . 40 12 39 1 21 Critical Kills . | . . . . . . Critical Parts Destroyed . | . . . . . . Critical Strikes 10 | . 2 . 7 1 . Blast 8 | . . . 7 1 . Corrupt 2 | . 2 . . . . Melee Attacks . | . . . . . . Impact . | . . . . . . Slashing . | . . . . . . Piercing . | . . . . . . Sneak Attacks . | . . . . . . Combat Hostiles . | . . . . . . Follow-up Attacks . | . . . . . . Damage Inflicted 4807 | . 979 658 2043 126 1001 Guns 1919 | . 894 533 492 . . Cannons 2557 | . . . 1430 126 1001 Explosions 331 | . 85 125 121 . . Melee . | . . . . . . Ramming . | . . . . . . Kinetic 1573 | . . . 1430 126 17 Thermal 1556 | . 624 125 121 . 686 Explosive . | . . . . . . Electromagnetic 1678 | . 355 533 492 . 298 Impact . | . . . . . . Slashing . | . . . . . . Piercing . | . . . . . . Highest Corruption 2 | . . . . . 2 Average Corruption 1 | . . . . . 1 Corruption Purged . | . . . . . . Corruption Blocked . | . . . . . . Overload Shots . | . . . . . . Overflow Damage 12 | . . . 10 . 2 Projectiles 12 | . . . 10 . 2 Explosions . | . . . . . . Melee . | . . . . . . Knockbacks 15 | . . . 15 . . Impact . | . . . . . . Kinetic 15 | . . . 15 . . Secondary . | . . . . . . Self-Inflicted Damage 38 | . . 38 . . . Shots 1 | . . 1 . . . Rammed . | . . . . . . Targets Rammed . | . . . . . . Kicked . | . . . . . . Crushed . | . . . . . . Highest Temperature 278 | . 90 66 14 81 278 Average Temperature 50 | . 19 24 6 26 81 Received Heat Transfer 939 | . 201 159 291 18 270 Siege Activations . | . . . . . . Martial Activations . | . . . . . . Shielding Activations . | . . . . . . Robots Disrupted . | . . . . . . Combat Hostiles . | . . . . . . Robots Corrupted 3 | . . 1 2 . . Combat Hostiles 3 | . . 1 2 . . Parts Fried 11 | . . 1 6 . 4 Impact Corruptions . | . . . . . . Robots Melted . | . . . . . . Combat Hostiles . | . . . . . . Parts Melted 3 | . 2 . . . 1 Heat Transferred 2500 | . 1275 200 100 . 925 Parts Sabotaged . | . . . . . . Parts Stolen . | . . . . . . Parts Stripped . | . . . . . . Power Chain Reactions 4 | . 1 2 1 . . Alert | -11 -10 -10 -10 -9 -7 ------- Run | Yrd Mat Min Sub Rec Fac Maximum Alert Level 1 | . . 1 . . . Low Security (%) 99 | 100 100 97 . 100 100 Level 1 . | . . 2 . . . Level 2 . | . . . . . . Level 3 . | . . . . . . Level 4 . | . . . . . . Level 5 . | . . . . . . High Security . | . . . . . . Max Security . | . . . . . . Peak Influence 218 | . 190 218 . 108 86 Initial 97 | . . 48 . 97 . Average 52 | . 64 57 . 50 31 Influence Increases 1760 | . 495 380 276 144 465 Destroy 0b10 Robot/C 900 | . 280 180 200 20 220 Destroy 0b10 Robot/NC 35 | . 25 . . . 10 Destroy Leader 176 | . 74 40 10 . 52 Allied During Kill 6 | . . . 6 . . Successful Hack 64 | . 24 . . 19 21 Disable Machine 360 | . 75 90 . 105 90 Destroy Structure 39 | . 2 25 . . 12 Lose Combat Pursuer 180 | . 15 45 60 . 60 Influence Decreases 1686 | . 371 504 73 347 391 Entered New Map 182 | . . 76 . 106 . Time Decay 1366 | . 371 428 53 241 273 Lost Ally 20 | . . . 20 . . Purge Threat 118 | . . . . . 118 Squads Dispatched 6 | . 2 . . . 4 Investigation 1 | . 1 . . . . Extermination 3 | . . . . . 3 Reinforcement 2 | . 1 . . . 1 Assault . | . . . . . . Garrison . | . . . . . . Intercept . | . . . . . . Searches Triggered . | . . . . . . Construction Impeded . | . . . . . . Haulers Reinforced 1 | . . . . . 1 Active Scanning Responses . | . . . . . . Cargo Convoy Interrupts . | . . . . . . Stealth | -11 -10 -10 -10 -9 -7 --------- Run | Yrd Mat Min Sub Rec Fac Distress Signals 4 | . 3 . . . 1 Communications Jammed . | . . . . . . Distress Signals . | . . . . . . Times Spotted 85 | . 27 12 25 1 20 Peak Tracking Total 5 | . 5 3 4 1 4 Tactical Retreats 9 | . 2 2 2 . 3 Traps | -11 -10 -10 -10 -9 -7 ------- Run | Yrd Mat Min Sub Rec Fac Traps Triggered 3 | . 1 . 2 . . Indirectly . | . . . . . . Trap Hack Attempts . | . . . . . . Triggered . | . . . . . . Disarmed . | . . . . . . Reprogrammed . | . . . . . . Reused . | . . . . . . Traps Extracted . | . . . . . . Installed . | . . . . . . Triggered . | . . . . . . Machines | -11 -10 -10 -10 -9 -7 ---------- Run | Yrd Mat Min Sub Rec Fac Machines Disabled 27 | . 5 6 3 7 6 Max in Single Turn 2 | . 1 2 1 1 1 Garrison Access 2 | . . . . . 2 Machines Repaired . | . . . . . . Machines Dismantled . | . . . . . . Machines Sabotaged . | . . . . . . Overloaded Fab Kills . | . . . . . . Hacking | -11 -10 -10 -10 -9 -7 --------- Run | Yrd Mat Min Sub Rec Fac Machines Accessed 28 | . 6 . 4 6 12 Terminals 21 | . 6 . . 6 9 Fabricators . | . . . . . . Repair Stations . | . . . . . . Recycling Units 1 | . . . . . 1 Scanalyzers . | . . . . . . Garrison Access 2 | . . . . . 2 Total Hacks 65 | . 16 . 6 13 30 Successful 47 | . 9 . 6 10 22 Failed 17 | . 6 . . 3 8 Catastrophic 2 | . 1 . . . 1 Database Lockouts 1 | . 1 . . . . Manual 36 | . 17 . . 10 9 Terminals 55 | . 16 . . 13 26 Fabricators . | . . . . . . Repair Stations . | . . . . . . Recycling Units 2 | . . . . . 2 Scanalyzers . | . . . . . . Garrison Access 2 | . . . . . 2 Terminal Hacks 23 | . 2 . 6 3 12 Record 3 | . . . 3 . . Part Schematic 3 | . . . . . 3 Robot Analysis 1 | . 1 . . . . Prototype ID Bank 4 | . . . . 2 2 Open Door 1 | . . . 1 . . Machine Index 1 | . . . . . 1 Unreport Threat 3 | . . . . . 3 Locate Traps 4 | . 1 . . . 3 Zone Layout 1 | . . . . 1 . Proto ID Catalog 1 | . . . 1 . . Release Object 1 | . . . 1 . . Fabricator Hacks . | . . . . . . Repair Station Hacks . | . . . . . . Recycling Unit Hacks 1 | . . . . . 1 Retrieve Components 1 | . . . . . 1 Scanalyzer . | . . . . . . Garrison Access Hacks 2 | . . . . . 2 Seal Access 2 | . . . . . 2 Unauthorized Hacks 20 | . 6 . . 7 7 Terminals 20 | . 6 . . 7 7 Botnet 11 | . 2 . . 2 7 Skim 9 | . 4 . . 5 . Fabricators . | . . . . . . Repair Stations . | . . . . . . Recycling Units . | . . . . . . Scanalyzers . | . . . . . . Garrison Access . | . . . . . . Data Cores Recovered 1 | . 1 . . . . Used . | . . . . . . Hacking Detections 13 | . 5 . . 2 6 Full Trace Events . | . . . . . . Feedback Events . | . . . . . . Feedback Blocked . | . . . . . . Robot Schematics Acquired . | . . . . . . Robots Built . | . . . . . . Authchips . | . . . . . . Time . | . . . . . . Total Robot Build Rating . | . . . . . . Part Schematics Acquired 11 | . . . . 1 10 Parts Built . | . . . . . . Authchips . | . . . . . . Time . | . . . . . . Total Part Build Rating . | . . . . . . Part Studies Acquired . | . . . . . . Parts Repaired . | . . . . . . Time . | . . . . . . Parts Recycled . | . . . . . . Recycled Matter . | . . . . . . Retrieved Matter . | . . . . . . Retrieved Components 4 | . . . . . 4 Parts Scanalyzed . | . . . . . . Part Schematics Acquired . | . . . . . . Parts Damaged . | . . . . . . Bothacking | -11 -10 -10 -10 -9 -7 ------------ Run | Yrd Mat Min Sub Rec Fac Used RIF Installer . | . . . . . . Robots Hacked . | . . . . . . Non-combat . | . . . . . . Combat . | . . . . . . Robot Hacks Applied . | . . . . . . Relay Couplers Released . | . . . . . . Fabnet Peak Effective % . | . . . . . . Robots Rewired . | . . . . . . Allies Hacked . | . . . . . . Hacks Repelled . | . . . . . . Allies | -11 -10 -10 -10 -9 -7 -------- Run | Yrd Mat Min Sub Rec Fac Total Allies 1 | . . . 1 . . Largest Group 1 | . . . 1 . . Highest-Rated Group 19 | . . . 19 . . Highest-Rated Ally 19 | . . . 19 . . Total Orders . | . . . . . . Ally Attacks 4 | . . . 4 . . Total Damage 23 | . . . 23 . . Kills 1 | . . . 1 . . Allies Corrupted . | . . . . . . Allies Melted . | . . . . . . Intel | -11 -10 -10 -10 -9 -7 ------- Run | Yrd Mat Min Sub Rec Fac Active Infowar (turns) 5530 | . 1030 1436 2085 684 295 Structural 5530 | . 1030 1436 2085 684 295 Robot Analysis Total 1 | . 1 . . . . Derelict Logs Recovered 2 | . . 1 1 . . Drone Launches . | . . . . . . Drone Recoveries . | . . . . . . Exploration | -11 -10 -10 -10 -9 -7 ------------- Run | Yrd Mat Min Sub Rec Fac Turns Passed 6374 | 35 1161 1436 2182 706 854 Spaces Moved 5712 | 34 769 724 2002 733 1450 Core 12 | 12 . . . . . Treads . | . . . . . . Legs . | . . . . . . Wheels 2828 | 22 769 724 1313 . . Hover . | . . . . . . Flight 2872 | . . . 689 733 1450 Fastest Speed 40 | 50 100 130 40 40 40 Average Speed 77 | 86 107 130 88 40 40 Slowest Speed 130 | 100 130 130 130 40 40 Overloaded Moves . | . . . . . . Propulsion Burnouts . | . . . . . . Robots Hopped 8 | . . . . 6 2 Potential Cave-ins . | . . . . . . Cave-ins Triggered . | . . . . . . Exploration Rate (%) 67 | 3 96 94 91 85 37 Regions Visited 5 Branch Regions 3 Pre-discovered Areas 2 | . . 1 . 1 . Known Exits Taken 2 | . . . 1 1 . Unknown Exits Taken 3 | 1 1 1 . . . Scrap Searched 3 | . . 3 . . . Spaces Dug 6 | . . . . . 6 Terrain Destroyed 54 | . 2 27 12 . 13 Melee . | . . . . . . Projectile 14 | . . . 1 . 13 AOE 40 | . 2 27 11 . . Terrain Rammed . | . . . . . . Walls Destroyed . | . . . . . . Machines Disabled . | . . . . . . Actions | -11 -10 -10 -10 -9 -7 --------- Run | Yrd Mat Min Sub Rec Fac Total 7137 | 37 971 1149 2221 1124 1635 Wait 998 | . 97 378 59 383 81 Move 5692 | 33 768 723 2001 721 1446 Hop 7 | . . . . 5 2 Pick Up 6 | . 1 . 1 2 2 Fast Attach 24 | 4 6 . 7 . 7 Attach 1 | . . . . 1 . Detach 2 | . . . . . 2 Swap 1 | . 1 . . . . Drop 19 | . 4 . 7 1 7 Fire 302 | . 68 38 100 11 85 Melee . | . . . . . . Ram . | . . . . . . Kick . | . . . . . . Crush . | . . . . . . Escape Stasis . | . . . . . . Rewire . | . . . . . . Trap . | . . . . . . Miscellaneous 85 | . 26 10 46 . 3 Route ------- -11/Scrapyard -10/Materials (discovered 6 exits: *Mat x3 / [*Min x2] / *Sub) -10/Mines (discovered 3 exits: *Mat x2 / *Sub) -10/Subcaves (discovered 3 exits: [*Mat x2] / *Rec) -9/Recycling (discovered 2 exits: *Fac / [Scr]) -7/Factory History --------- Turn | Location | Event 1 | -11/Scrapyard | Upgraded with Weapon slot (x1) 20 | -11/Scrapyard | Discovered new exit (range 12) 36 | -11/Scrapyard | Entered Materials 157 | -10/Materials | Discovered new exit (range 8) 244 | -10/Materials | Discovered new exit (range 15) 302 | -10/Materials | Build established: Mutant 448 | -10/Materials | Central database locked down 507 | -10/Materials | Discovered new exit (range 16) 602 | -10/Materials | Discovered new exit (range 11) 662 | -10/Materials | Discovered new exit (range 12) 712 | -10/Materials | Discovered new exit (range 14) 726 | -10/Materials | Upgraded with Utility slot (x1) 736 | -10/Materials | Derelicts attacked the area 804 | -10/Materials | Reached level 2 892 | -10/Materials | Upgraded with Utility slot (x2) 1197 | -10/Materials | Entered Mines 1198 | -10/Mines | Learned location of Storage (-9) 1313 | -10/Mines | Reached level 3 1455 | -10/Mines | Discovered new exit (range 7) 1568 | -10/Mines | Discovered new exit (range 6) 1579 | -10/Mines | Assembled infested the area 1584 | -10/Mines | Assisted by a Guerilla fighting off Assembled 2150 | -10/Mines | Identified exit to Materials 2305 | -10/Mines | A weapon hastily lodged in a ceiling crevice suddenly fell to the ground 2633 | -10/Mines | Entered Subcaves 2634 | -10/Subcaves | Approached by a straggling Scientist 2635 | -10/Subcaves | Reached level 4 3017 | -10/Subcaves | Shifting Twisted Machinery released Slug Cannon 3042 | -10/Subcaves | Shifting Twisted Machinery released Mak. Hacking Suite 3255 | -10/Subcaves | Found SUBCON Basin 3294 | -10/Subcaves | A swath of the cavern ceiling suddenly collapsed 3733 | -10/Subcaves | Ambushed by Subdweller buried in earth 3734 | -10/Subcaves | Core integrity fell below 50% 4012 | -10/Subcaves | Visited triangular shrine 4020 | -10/Subcaves | Found Prototype Device 4020 | -10/Subcaves | Identified V3-11A's Pendant 4025 | -10/Subcaves | Befriended Subdweller 4035 | -10/Subcaves | A swath of the cavern ceiling suddenly collapsed 4305 | -10/Subcaves | Discovered new exit (range 14) 4390 | -10/Subcaves | Discovered new exit (range 6) 4439 | -10/Subcaves | Visited 4L-MR0's lab 4447 | -10/Subcaves | Upgraded with Propulsion slot (x3) 4455 | -10/Subcaves | Found Flightbrick 4456 | -10/Subcaves | Attached Flightbrick, gained temporary slots: Utility x3 4506 | -10/Subcaves | Identified exit to Recycling 4666 | -10/Subcaves | Visited Clippyterm 4667 | -10/Subcaves | Learned Factory trap positions 4720 | -10/Subcaves | Shifting Twisted Machinery released Sub. Power Source 4766 | -10/Subcaves | Reached level 5 4783 | -10/Subcaves | Shifting Twisted Machinery released Mak. Sword 4815 | -10/Subcaves | Entered Recycling 4853 | -9/Recycling | Discovered new exit (range 8) 4912 | -9/Recycling | Scanned before Scraplab entrance 4916 | -9/Recycling | Discovered new exit (range 11) 4918 | -9/Recycling | Entered Scraplab 4929 | -9/Recycling | Reached level 6 5023 | -9/Recycling | Tech Extrapolator generated special schematic: Deep Structural Scanner 5103 | -9/Recycling | Learned Storage garrison access intel 5179 | -9/Recycling | Identified exit to Factory 5243 | -9/Recycling | Learned 2 Storage zone layouts 5297 | -9/Recycling | Learned Materials emergency access door positions 5343 | -9/Recycling | Learned 8 Materials zone layouts 5381 | -9/Recycling | Learned 4 Recycling zone layouts 5493 | -9/Recycling | Learned location of Zion (-7) 5521 | -9/Recycling | Entered Factory 5522 | -7/Factory | Loaded intel: 95 trap records 5523 | -7/Factory | Reached level 7 5576 | -7/Factory | Reached level 8 5912 | -7/Factory | Build established: Hacker-Scout 5927 | -7/Factory | Core integrity fell below 50% 6173 | -7/Factory | Tech Extrapolator generated special schematic: Machine Rigger 6347 | -7/Factory | Core integrity fell below 20% 6350 | -7/Factory | Reached level 9 6375 | -7/Factory | Destroyed by P-60 Hacker with Shock Rifle Last Messages --------------- Laser. 06333_ ALERT: Potential suspicious activity detected, Programmers report to Factory Zone 3P. 06341_ G-50 Soldier misfires. 06344_ Critical hit (Burn: +37). 06350_ Reached level 9. 06350_ G-50 Soldier destroyed. 06354_ Upgraded: Core Integrity (+100) 06354_ Upgraded: Heat Dissipation (+24) 06354_ G-47 Trooper destroyed. 06364_ R-06 Scavenger collects Corrupted Carbon-fiber Leg. 06366_ G-47 Trooper misfires. 06368_ R-06 Scavenger collects Corrupted Adv. Heat Sink. 06370_ Destroyed Tractor Beam. 06374_ G-47 Trooper destroyed. 06375_ R-06 Scavenger collects Corrupted Imp. Heat Sink. Map ----- +----------------------------------------------------+ | ????????????????????????????????????????????# ? | | ????????????????????????????????????????????#! ?? | | ????????????????????????????????????????????####?? | | ?????????????????????????????????????????????????? | | ?????????????????????????????????????????????????? | | ?????????????????????????????????????????????????? | | ????????????????????? ??????????????????######## | | ??????????????????? ??????????????????? | | ??????????????????# ??????????????????? ## | | ??????????????????# ?????????????????????????? | | ??????????????????# ?????????????????????????? | | ??????????????????# ?#?? #???????????????????? | | ??????????????????# ? ?? #???????????????????? | | ??????????????????+ #;##p#########???????????? | | ??????????????????# # #???????##### | | ??????????????????# # #???????# | | ??????????????????# # = #???????# """ | | ??????????????????# #u #???????# """ | | ??????????????????# # m #???????# """ | | ??????????????????# # #???????#= | | ??????????????????+ + % #???????#=""" | | ^?????????????????# #r= #???????#="R | | ??????????????????# #=% #???????#%""" | | ??????????????????# # #???????#=="" | | ??????????????????# # #???????#== | | ??????????????????# #@ #???????##+## | | ??????????????????# ##############????????# ## | | ??????????????????# #############?????????# | | ??????????????????# #"""""""""""#?????????# | | ??????????????????# # """"T"""" ########### | | ??????????????????# | | ??????????????????# ^ ^ ######### | | ?????????########## " ^ #???????# | | ?????????# w # "" """ """ """ #???????#### | | ?????????? """" + G """ """ """ #??????????? | | ?????????? """ # "" """ """ """ #??????????? | | ?????????? """" # " """ """ """ #??????????? | | ?????????? """" # ^ ^ #??????????? | | ?????????? """" # """^""" #??????????? | | ??????????? """" # """ """ #??????????? | | ?????????????? # """ """ #??????????? | | ?????????????? # """ """ #??????????? | | ???????????????#### !!! +??????????? | | ??????????????????# !!! #??????????? | | ??????????????????# !! #??????????? | | ??????????????????# ########## #???????????? | | ################### # #? ????????????? | | ! = # """ #???????????????? | | ^ + """ #???????????????? | | """"""""" # """ #???????????????? | +----------------------------------------------------+ Best States ------------- Heat Dissipation 55 Energy Generation 12 Energy Capacity 465 Matter Stores 300 Matter Capacity 300 Sight Range 16 Robot Scan Range 18 Terrain Scan Density 10 Armor Coverage 800 Evasion (%) 62 Core Analysis 6 Offensive Hacking 41 Defensive Hacking 25 Item Schematics ----------------- Deep Structural Scanner | -9/Recycling | Extrapolated Mak. Light Armor Plating | -7/Factory | Extrapolated Beamcaster | -7/Factory | Extrapolated Mak. Shrapnel Gun | -7/Factory | Extrapolated Imp. System Restoration Module | -7/Factory | Hacked Adv. Plasma Cannon | -7/Factory | Hacked Mak. Power Source | -7/Factory | Extrapolated Machine Rigger | -7/Factory | Extrapolated Imp. KE Penetrator | -7/Factory | Hacked Mak. Heavy Armor Plating | -7/Factory | Extrapolated Mak. Laser | -7/Factory | Extrapolated Robot Schematics ------------------ None Fabricated ------------ Nothing Repaired ---------- Nothing Studied --------- None Alien Tech Used ----------------- None Achievements -------------- None Challenges ------------ None RPGLIKE | -11 -10 -10 -10 -9 -7 --------- Run | Yrd Mat Min Sub Rec Fac Levels Raised 8 | . 1 1 2 1 3 XP Earned 15281 | 3000 2185 2050 1991 2675 3380 XP Spent 13910 | 500 2650 . 3250 . 7510 Upgrades 34 | 1 4 . 8 . 21 Propulsion Slot 3 | . . . 3 . . Utility Slot 3 | . 3 . . . . Weapon Slot 1 | 1 . . . . . Core Integrity 2 | . . . . . 2 Heat Dissipation 5 | . . . . . 5 Inventory Capacity 2 | . 1 . 1 . . Sensor Range 9 | . . . 4 . 5 Hack Attack % 4 | . . . . . 4 Hack Defense % 5 | . . . . . 5 Protomatter Created 561 | . 193 71 218 . 79 Integrity Restored 1374 | . 381 213 714 . 66 Core 1267 | . 274 213 714 . 66 Parts 107 | . 107 . . . . Protomatter Decayed 101 | . 61 . 40 . . Game ------ Seed SpreadCoordinationCloak Manual? 1 Play Time 00:54:45 Cumulative 252.4 hours Start 2026.08.30 @ 21:02:31 End 2026.08.30 @ 22:03:04 Sessions 1 Manual Loads 0 Difficulty Rogue Special Mode Winter2019/RPGLIKE Game No. 162 Rogue 162 Adventurer 0 Explorer 0 Win Type - Total 6 Types 2/0/2/1/0/0/0/1/0/0 Lore% 61 Gallery% 74 Achievement% 58 Wizard Run 0 Options --------- Layout 2 ASCII 0 Keyboard 0 Movement Mouse Keybinds 0 Fullscreen 1 Font 32/SmallcapsGlow Map View 50x44 Zoom Use 0% Tactical HUD 1 Map Filters NONE Filters NONE Steam 1 RUN: ea4f6f5a-c819-4c73-a32a-2c0e9767c9f5